Cogmind - Beta 9.6 @@@ ROGUE MODE // 2020.05.03 @ 17:53:04 Player: Dracunos Result: Destroyed by G-34 Mercenary with Small Laser Performance ------------- Evolutions (1) 500 Regions Visited (2) 400 Robots Destroyed (31) 155 Value Destroyed (565) 565 Prototype IDs (3) 60 Alien Tech Used (0) 0 Bonus (0) 0 TOTAL SCORE: 1680 Bonus ------- None Cogmind --------- Core Integrity 0/400 Matter 300/300 Energy 244/250 System Corruption 0% Temperature Cool (9) Movement Walking (150) Ox1 Location -9/Materials Parts ------- > --- POWER (1) -------- Ion Engine > --- PROPULSION (3) --- Aluminum Leg Aluminum Leg Aluminum Leg > --- UTILITY (3) ------ Large Storage Unit High-capacity Storage Unit > --- WEAPON (2) ------- Heavy EM Pulse Gun > --- INVENTORY (18) --- Ion Engine Light Ion Engine Light Treads Aluminum Leg Aluminum Leg Small Storage Unit High-capacity Storage Unit Heavy EM Pulse Gun Beam Rifle Particle Gun Peak State ------------ > --- POWER ------------ Ion Engine > --- PROPULSION ------- Light Treads Light Treads > --- UTILITY ---------- Large Storage Unit High-capacity Storage Unit Improved Sensor Array > --- WEAPON ----------- Medium Laser Assault Rifle > --- INVENTORY -------- Ion Engine Ion Engine Light Ion Engine Aluminum Leg Aluminum Leg Small Storage Unit High-capacity Storage Unit Visual Processing Unit Visual Processing Unit Heavy EM Pulse Gun Heavy EM Pulse Gun Heavy EM Pulse Gun Heavy EM Pulse Gun Particle Gun Beam Cannon Advanced Beam Cannon Light Assault Rifle Light Cannon [Rating: 11] Favorites ----------- Power Ion Engine Engine Ion Engine Propulsion Light Treads Treads Light Treads Leg Aluminum Leg Utility High-capacity Storage Unit Device Improved Sensor Array Storage High-capacity Storage Unit Weapon Medium Laser Energy Gun Medium Laser Energy Cannon Beam Cannon Ballistic Gun Assault Rifle Ballistic Cannon Light Cannon Build | -11 -10 -9 ------- Run | Scr Mat Mat Slots Evolved 2 | . . 2 Power . | . . . Propulsion 1 | . . 1 Utility 1 | . . 1 Weapon . | . . . Parts Attached 28 | 6 5 17 Power 6 | 1 2 3 Engine 6 | 1 2 3 Core . | . . . Reactor . | . . . Propulsion 6 | 2 . 4 Treads 2 | 2 . . Leg 4 | . . 4 Wheel . | . . . Hover . | . . . Flight . | . . . Utility 4 | 1 2 1 Device 1 | . . 1 Storage 3 | 1 2 . Processor . | . . . Hackware . | . . . Protection . | . . . Artifact . | . . . Weapon 12 | 2 1 9 Energy Gun 6 | 1 1 4 Energy Cannon 2 | . . 2 Ballistic Gun 3 | 1 . 2 Ballistic Cannon 1 | . . 1 Launcher . | . . . Special Weapon . | . . . Impact Weapon . | . . . Slashing Weapon . | . . . Piercing Weapon . | . . . Special Melee Weapon . | . . . Unidentified Prototypes 1 | . . 1 Parts Lost 13 | . . 13 Power 2 | . . 2 Propulsion 2 | . . 2 Utility 1 | . . 1 Weapon 8 | . . 8 Highest Loss Streak 11 | . . 11 Average Slot Usage (%) 90 | . 97 80 Engine 12 | . 14 11 Treads 21 | . 28 13 Leg 3 | . . 7 Device 2 | . . 6 Storage 24 | . 25 22 Energy Gun 12 | . 14 11 Energy Cannon 1 | . . 3 Ballistic Gun 9 | . 14 4 Naked Turns . | . . . Heaviest Build 60 | 11 57 60 Greatest Support 40 | 40 40 40 Greatest Overweight (x) 2 | . 1 2 Average Overweight (x) . | . . 1 Largest Inventory Capacity 18 | 6 18 18 Average Capacity 15 | 5 14 18 Most Carried 18 | 6 18 18 Average Carried 13 | 4 13 15 Final Capacity 18 | 6 18 18 Final Carried 18 | 6 18 10 Class Distribution -------------------- 100% | Mutant Dominant Class ---------------- Mutant | -10/Materials Mutant | -9/Materials Resources | -11 -10 -9 ----------- Run | Scr Mat Mat Matter Collected 580 | 249 65 266 Remotely . | . . . Salvage Created 869 | . 200 669 Parts 53 | . 19 34 Haulers Intercepted . | . . . Recyclers Shooed . | . . . Parts Field Recycled . | . . . Retrieved Matter . | . . . Parts Self-Destructed . | . . . Prevented . | . . . Kills | -11 -10 -9 ------- Run | Scr Mat Mat Combat Hostiles Destroyed 26 | . 7 19 Guns 16 | . 7 9 Cannons 9 | . . 9 AOE 1 | . . 1 Classes Destroyed 6 | . 3 3 Builder 2 | . . 2 Recycler 3 | . 1 2 Swarmer 16 | . 6 10 Grunt 8 | . 1 7 Duelist 1 | . . 1 Sentry 1 | . . 1 Best Kill Streak 7 | . 5 7 Combat Bots Only 7 | . 4 7 Max Kills in Single Turn 2 | . 2 1 Gunslinging 1 | . 1 . Exploded 1 | . . 1 Melee . | . . . Uniques/NPCs Destroyed . | . . . Combat | -11 -10 -9 -------- Run | Scr Mat Mat Damage Taken 1930 | . 186 1744 Core 431 | . 23 408 Absorbed by Shields . | . . . Core Remaining (%) 95 | 100 90 . Volleys Fired 73 | . 12 61 Largest 2 | . 2 2 Hottest 110 | . 70 110 Shots Fired 125 | . 24 101 Gun 79 | . 24 55 Cannon 46 | . . 46 Launcher . | . . . Special . | . . . Kinetic 41 | . 12 29 Thermal 61 | . 12 49 Explosive . | . . . Electromagnetic 23 | . . 23 Robot Hit Streak 8 | . 6 8 Robot Miss Streak 4 | . 2 4 Penetration Max . | . . . Secondary Targets 3 | . 1 2 Max Gunslinging Chain 1 | . 1 1 Shots Hit Robots 84 | . 16 68 Core Hits 41 | . 10 31 Critical Hits . | . . . Critical Kills . | . . . Critical Parts Destroyed . | . . . Melee Attacks . | . . . Impact . | . . . Slashing . | . . . Piercing . | . . . Sneak Attacks . | . . . Combat Hostiles . | . . . Follow-up Attacks . | . . . Damage Inflicted 1222 | . 196 1026 Guns 693 | . 196 497 Cannons 494 | . . 494 Explosions 24 | . . 24 Melee . | . . . Ramming 11 | . . 11 Kinetic 374 | . 94 280 Thermal 637 | . 102 535 Explosive . | . . . Electromagnetic 200 | . . 200 Impact . | . . . Slashing . | . . . Piercing . | . . . Highest Corruption . | . . . Average Corruption . | . . . Corruption Purged . | . . . Overload Shots . | . . . Overflow Damage . | . . . Projectiles . | . . . Explosions . | . . . Melee . | . . . Knockbacks 2 | . . 2 Impact . | . . . Kinetic 2 | . . 2 Secondary . | . . . Self-Inflicted Damage 27 | . . 27 Shots 1 | . . 1 Rammed 2 | . . 2 Targets Rammed 2 | . . 2 Kicked . | . . . Crushed . | . . . Highest Temperature 514 | . 87 514 Average Temperature 171 | . 36 197 Received Heat Transfer 495 | . 6 489 Effects 14 | . . 14 Shutdowns 4 | . . 4 Energy Bleed 2 | . . 2 Interference 3 | . . 3 Matter Decay 2 | . . 2 Damage (major) 3 | . . 3 Siege Activations . | . . . Robots Corrupted . | . . . Combat Hostiles . | . . . Parts Fried . | . . . Impact Corruptions . | . . . Robots Melted . | . . . Combat Hostiles . | . . . Parts Melted 2 | . 1 1 Heat Transferred 1554 | . 296 1258 Parts Sabotaged . | . . . Parts Stolen . | . . . Parts Stripped . | . . . Power Chain Reactions 1 | . . 1 Missiles Intercepted . | . . . Alert | -11 -10 -9 ------- Run | Scr Mat Mat Peak Influence 305 | . 195 305 Average Influence 93 | . 74 132 Maximum Alert Level 1 | . . 1 Low Security (%) 83 | 100 100 59 Level 1 16 | . . 40 Level 2 . | . . . Level 3 . | . . . Level 4 . | . . . Level 5 . | . . . High Security . | . . . Max Security . | . . . Squads Dispatched 2 | . . 2 Investigation . | . . . Extermination . | . . . Reinforcement 2 | . . 2 Assault . | . . . Garrison . | . . . Intercept . | . . . Construction Impeded . | . . . Haulers Reinforced . | . . . Stealth | -11 -10 -9 --------- Run | Scr Mat Mat Distress Signals . | . . . Communications Jammed . | . . . Distress Signals . | . . . Times Spotted 44 | . 14 30 Peak Tracking Total 8 | . 5 8 Tactical Retreats 5 | . . 5 Traps | -11 -10 -9 ------- Run | Scr Mat Mat Traps Triggered . | . . . Indirectly . | . . . Trap Hack Attempts . | . . . Triggered . | . . . Disarmed . | . . . Reprogrammed . | . . . Reused . | . . . Traps Extracted . | . . . Installed . | . . . Triggered . | . . . Machines | -11 -10 -9 ---------- Run | Scr Mat Mat Machines Disabled . | . . . Max in Single Turn . | . . . Machines Sabotaged . | . . . Garrisons Compromised . | . . . Overloaded Fab Kills . | . . . Fab Network Shutdowns . | . . . Hacking | -11 -10 -9 --------- Run | Scr Mat Mat Machines Accessed 3 | . 3 . Terminals 2 | . 2 . Fabricators . | . . . Repair Stations . | . . . Recycling Units 1 | . 1 . Scanalyzers . | . . . Garrison Access . | . . . Total Hacks 6 | . 6 . Successful 4 | . 4 . Failed 2 | . 2 . Catastrophic . | . . . Database Lockouts . | . . . Manual . | . . . Terminals 4 | . 4 . Fabricators . | . . . Repair Stations . | . . . Recycling Units 2 | . 2 . Scanalyzers . | . . . Garrison Access . | . . . Terminal Hacks 2 | . 2 . Prototype ID Bank 1 | . 1 . Maintenance Status 1 | . 1 . Fabricator Hacks . | . . . Repair Station Hacks . | . . . Recycling Unit Hacks 2 | . 2 . Report Inventory 1 | . 1 . Retrieve Matter 1 | . 1 . Scanalyzer . | . . . Garrison Access Hacks . | . . . Unauthorized Hacks . | . . . Terminals . | . . . Fabricators . | . . . Repair Stations . | . . . Recycling Units . | . . . Scanalyzers . | . . . Garrison Access . | . . . Data Cores Recovered . | . . . Used . | . . . Hacking Detections 2 | . 2 . Full Trace Events . | . . . Feedback Events . | . . . Feedback Blocked . | . . . Robot Schematics Acquired . | . . . Robots Built . | . . . Matter . | . . . Time . | . . . Total Robot Build Rating . | . . . Part Schematics Acquired . | . . . Parts Built . | . . . Matter . | . . . Time . | . . . Total Part Build Rating . | . . . Parts Repaired . | . . . Time . | . . . Parts Recycled . | . . . Recycled Matter . | . . . Retrieved Matter 42 | . 42 . Retrieved Components . | . . . Parts Scanalyzed . | . . . Part Schematics Acquired . | . . . Parts Damaged . | . . . Bothacking | -11 -10 -9 ------------ Run | Scr Mat Mat Used RIF Installer . | . . . Robots Hacked . | . . . Non-combat . | . . . Combat . | . . . Robot Hacks Applied . | . . . Relay Couplers Released . | . . . Robots Rewired . | . . . Allies Hacked . | . . . Hacks Repelled . | . . . Allies | -11 -10 -9 -------- Run | Scr Mat Mat Total Allies . | . . . Largest Group . | . . . Highest-Rated Group . | . . . Highest-Rated Ally . | . . . Total Orders . | . . . Ally Attacks . | . . . Total Damage . | . . . Kills . | . . . Allies Corrupted . | . . . Allies Melted . | . . . Intel | -11 -10 -9 ------- Run | Scr Mat Mat Robot Analysis Total . | . . . Derelict Logs Recovered . | . . . Drone Launches . | . . . Drone Recoveries . | . . . Exploration | -11 -10 -9 ------------- Run | Scr Mat Mat Turns Passed 1327 | 87 699 541 Spaces Moved 595 | 50 358 187 Core 7 | 7 . . Treads 526 | 43 358 125 Legs 62 | . . 62 Wheels . | . . . Hover . | . . . Flight . | . . . Fastest Speed 50 | 50 160 150 Average Speed 172 | 144 177 172 Slowest Speed 200 | 160 180 200 Overloaded Moves . | . . . Propulsion Burnouts . | . . . Robots Hopped . | . . . Cave-ins Triggered . | . . . Exploration Rate (%) 24 | 5 56 11 Regions Visited 2 Branch Regions . Pre-discovered Areas . | . . . Known Exits Taken . | . . . Unknown Exits Taken 2 | 1 1 . Scrap Searched . | . . . Spaces Dug . | . . . Terrain Destroyed 4 | . . 4 Melee . | . . . Projectile . | . . . AOE 4 | . . 4 Actions | -11 -10 -9 --------- Run | Scr Mat Mat Total 771 | 62 405 304 Wait 35 | . 4 31 Move 593 | 49 357 187 Hop . | . . . Pick Up 28 | 7 17 4 Fast Attach 9 | 5 2 2 Attach 13 | 1 1 11 Detach 2 | . 2 . Swap 6 | . 2 4 Drop 10 | . 8 2 Fire 73 | . 12 61 Melee . | . . . Ram . | . . . Kick 2 | . . 2 Crush . | . . . Escape Stasis . | . . . Rewire . | . . . Trap . | . . . Miscellaneous . | . . . Route ------- -11/Scrapyard -10/Materials (discovered 3 exits: [*Mat] / [*Min x2]) -9/Materials History --------- Turn | Location | Event 8 | -11/Scrapyard | Discovered new exit (range 15) 88 | -11/Scrapyard | Entered Materials 202 | -10/Materials | Discovered new exit (range 15) 310 | -10/Materials | Build established: Mutant 339 | -10/Materials | Discovered new exit (range 14) 653 | -10/Materials | Discovered new exit (range 9) 787 | -10/Materials | Entered another Materials area 787 | -9/Materials | Evolved 2 slots: Propulsion x1, Utility x1 1171 | -9/Materials | Core integrity fell below 50% 1189 | -9/Materials | Core integrity fell below 20% 1233 | -9/Materials | Lost 11 parts (2p1n1u7w) 1245 | -9/Materials | Destroyed 7 combat bots 1328 | -9/Materials | Destroyed by G-34 Mercenary with Small Laser Last Messages --------------- 01255_ K-01 Serf collects debris. 01256_ U-05 Engineer lays Concrete. 01259_ K-01 Serf collects debris. 01259_ U-05 Engineer lays Concrete. 01260_ U-05 Engineer builds a Wall. 01264_ K-01 Serf collects debris. 01265_ U-05 Engineer builds a Wall. 01266_ U-05 Engineer lays Concrete. 01268_ U-05 Engineer destroyed. 01269_ U-05 Engineer lays Concrete. 01269_ U-05 Engineer builds a Wall. 01270_ U-05 Engineer destroyed. 01270_ U-05 Engineer lays Concrete. 01270_ K-01 Serf collects debris. 01277_ U-05 Engineer builds a Wall. 01284_ Acquired Lgt. Treads. 01290_ Acquired Beam Rifle. 01306_ Hvy. EM Pulse Gun destroyed. 01307_ Slammed into G-34 Mercenary. 01323_ U-05 Engineer lays Concrete. Map ----- +----------------------------------------------------+ | ??????????????? | | ??????????????? | | ################### ##########?????????????????? | | ??????????????????# # #?????????????????? | | ??????????????????# * # #?????????????????? | | ??????????????????#[ + #?????????????????? | | ??????????????????# # #?????????????????? | | ??????????????????# # #?????????????????? | | ??????????????????# # #?????????????????? | | ??????????????????# # #?????????????????? | | ??????????????????# #%==! #?????????????????? | | ??????????????????# #=%%=% #?????????????????? | | ??????????????????# ###+######?????????????????? | | ?????????????????? #?#=# #?????????????????? | | ?????????????????? #?#%# ""#?????????????????? | | ????????????????? #?#%# *T"#?????????????????? | | ?????????????????######?#%+ =""#?????????????????? | | ????????????????????????#%# #?????????????????? | | ????????????????????????#*#!* #?????????????????? | | ???????????????????????##%#%= #?????????????????? | | ???????????????????????##a######??? #????????????? | | ??????????????????????###%###???? #????????????? | | ??????????????????????#!|=g%#### #????????????? | | ??????????????""" #####*!**%% u#????????????? | | ??????????????""" + u[g=%=!* #????????????? | | ??????????????""" # ###[[@% ????????? | | ??????????????????????# ! # ######## ????????? | | ??????????????????????###+### #????????????????? | | ???????????????????????? ??? #????????????????? | | ???????????????????????? ???###????????????????? | | ??????????????????????? ?????????????????????? | | ??????????????????????? ?????????????????????? | | ?????????????????????? ! #????????????????????? | | ?????????????????????? #????????????????????? | | ?????????????????????########????????????????????? | | ?????????????????????????????????????????????????? | | ?????????????????????????????????????????????????? | | ?????????????????????????????????????????????????? | | ?????????????????????????????????????????????????? | | ?????????????????????????????????????????????????? | | ?????????????????????????????????????????????????? | | ?????????????????????????????????????????????????? | | ?????????????????????????????????????????????????? | | ?????????????????????????????????????????????????? | | ?????????????????????????????????????????????????? | | ?????????????????????????????????????????????????? | | ?????????????????????????????????????????????????? | | ?????????????????????????????????????????????????? | | ?????????????????????????????????????????????????? | | ?????????????????????????????????????????????????? | +----------------------------------------------------+ Best States ------------- Heat Dissipation 28 Energy Generation 12 Energy Capacity 265 Matter Stores 300 Matter Capacity 300 Sight Range 16 Robot Scan Range 13 Terrain Scan Density 10 Evasion (%) 40 Recoil Reduction 2 Item Schematics ----------------- None Robot Schematics ------------------ None Fabricated ------------ Nothing Alien Tech Used ----------------- None Achievements -------------- None Challenges ------------ None Game ------ Seed MiniGaussRifle Manual? 0 Play Time 00:23:03 Cumulative 26.8 hours Start 2020.05.03 @ 17:25:04 End 2020.05.03 @ 17:53:04 Sessions 1 Manual Loads 0 Difficulty Rogue Special Mode None Game No. 22 Rogue 22 Adventurer 0 Explorer 0 Win Type - Total 1 Types 1/0/0/0/0/0/0 Lore% 18 Gallery% 22 Achievement% 14 Wizard Run 0 Options --------- ASCII 1 Keyboard 1 Movement Numpad Keybinds 0 Fullscreen 0 Font 16/SmallcapsGlow Map View 76x50 Tactical HUD 1 Map Filters NONE Filters NONE Steam 1 RUN: 3e1fbf28-e58c-4b50-9f9a-1617e92d1937